bitfinex-derivatives/quotes_ETHF0:USTF0_20250616
["timestamp","ask_amount","ask_price","bid_price","bid_amount"]
[1750087770649,12.30994434,2639.3,2639.2,0.86203698]
[1750087770844,9.10214434,2639.3,2639.2,0.86203698]
[1750087774947,9.10214434,2639.3,2639.2,0.91426547]
[1750087775551,9.10214434,2639.3,2639.2,0.15668547]
[1750087776249,10.13682184,2639.3,2639.2,0.15668547]
[1750087776552,11.36512184,2639.3,2639.2,0.15668547]
[1750087778645,0.7577,2638.8,2638.5,0.75776]
[1750087778857,0.75778,2638.5,2638.4,0.75779]
[1750087779153,0.75778,2638.5,2638.3,2.5547]
[1750087779154,0.75781,2638.4,2638.3,2.06972]
[1750087779451,0.75781,2638.4,2638.3,0.6668]
[1750087780153,0.75784,2638.3,2638.2,0.00568526]
[1750087780653,9.10240434,2638.3,2638.2,0.00568526]
[1750087780847,9.10240434,2638.3,2638.2,0.76355526]
[1750087781155,9.10240434,2638.3,2638.2,0.00568526]
[1750087782546,9.10240434,2638.3,2638.2,0.76355526]
[1750087782950,8.34456434,2638.3,2638.2,0.76355526]
[1750087783447,8.34456434,2638.3,2638.2,0.81578375]
[1750087783655,9.10240434,2638.3,2638.2,0.81578375]
[1750087784052,9.10240434,2638.3,2638.2,0.05791375]
[1750087784451,9.10240434,2638.3,2638.2,0.81578375]
[1750087785458,9.10234434,2638.6,2638.5,0.75778]
[1750087785661,10.13754577,2638.6,2638.5,0.75778]
[1750087786358,0.75781,2638.5,2638.4,0.75779]
[1750087786560,1.74078294,2638.5,2638.4,0.75779]
[1750087787458,1.03520143,2638.5,2638.4,0.75779]
[1750087787654,0.75772,2638.8,2638.7,0.75772]
[1750087787855,1.79355647,2638.8,2638.7,0.75772]
[1750087788256,1.79355647,2638.8,2638.5,2.56876]
[1750087788257,0.75775,2638.7,2638.6,0.75773]
[1750087788563,1.79358647,2638.7,2638.6,0.75773]
[1750087788964,0.75775,2638.6,2638.5,1.43206]
[1750087789166,9.10231434,2638.6,2638.5,1.43206]
[1750087789755,0.75772,2638.8,2638.5,0.6743]
[1750087789961,1.03616738,2638.7,2638.6,1.98655]
[1750087790353,8.34456434,2638.9,2638.8,0.7577]
[1750087790660,1.03624143,2638.9,2638.8,0.7577]
[1750087790855,8.34456434,2639.2,2639.1,0.75761]
[1750087791053,1.03641132,2639.2,2639.1,0.75761]
[1750087791252,0.75754,2639.4,2639.3,0.75752]
[1750087791460,1.03652337,2639.4,2639.3,0.75752]
[1750087792056,9.1077596,2639.5,2639.4,0.75752]
[1750087792355,10.14416818,2639.5,2639.4,0.80974849]
[1750087793561,1.04209384,2639.5,2639.4,0.80974849]
[1750087793755,0.00568526,2639.5,2639.4,0.80974849]
[1750087793960,0.00568526,2639.5,2639.4,2.16234849]
[1750087794761,0.76317526,2639.5,2639.4,0.05222849]
[1750087795353,0.75764,2639.0,2638.9,0.675]
[1750087795559,9.10220434,2639.0,2638.9,0.675]
[1750087795766,0.75775,2638.7,2638.6,0.75775]
[1750087795955,0.75775,2638.6,2638.5,3.39856]
[1750087796160,0.75775,2638.6,2638.5,2.6408]
[1750087796361,0.75775,2638.6,2638.5,1.2882]
[1750087797066,0.75779,2638.6,2638.5,0.75776]
[1750087797368,0.75781,2638.5,2638.4,0.75779]
[1750087798262,0.75784,2638.3,2638.2,0.00568526]
[1750087800873,3.2078,2638.7,2638.2,0.00568526]
[1750087801065,0.75781,2638.5,2638.4,0.75779]
[1750087801365,0.75775,2638.7,2638.6,0.75773]
[1750087802264,8.34456434,2638.8,2638.3,5.8673]
[1750087802464,8.34456434,2638.8,2638.5,0.75777]
[1750087802465,0.75779,2638.6,2638.5,0.75777]
[1750087802666,0.75781,2638.4,2638.3,3.41733]
[1750087802862,9.10237434,2638.4,2638.3,3.41733]
[1750087803373,0.75784,2638.3,2638.2,0.00568526]
[1750087803569,3.2078,2638.4,2638.2,0.00568526]
[1750087803870,0.30813052,2639.3,2638.2,0.00568526]
[1750087803871,10.23827434,2639.6,2638.3,8.34456434]
[1750087804071,10.23827434,2639.6,2639.1,0.75758]
[1750087804270,0.75754,2639.4,2639.3,0.75754]
[1750087804569,0.75756,2639.3,2639.2,0.75756]
[1750087804971,0.75754,2639.4,2639.3,0.75754]
[1750087805268,0.75758,2639.3,2639.2,0.75757]
[1750087806070,0.75754,2639.4,2639.3,0.75754]
[1750087806365,0.76319526,2639.5,2639.4,0.75752]
[1750087806567,0.00568526,2639.5,2639.0,4.46797]
[1750087806770,0.76320526,2639.5,2639.4,0.75752]
[1750087807065,0.75753,2639.4,2639.3,0.75753]
[1750087807469,0.75753,2639.4,2639.0,2.5739]
[1750087807470,0.75757,2639.3,2639.2,0.75756]
[1750087807667,0.75758,2639.3,2639.2,0.75757]
[1750087807969,0.75753,2639.4,2639.3,0.75752]
[1750087809667,0.76319526,2639.5,2639.4,0.75752]
[1750087809868,0.00568526,2639.5,2639.4,0.75752]
[1750087810376,0.76317526,2639.5,2639.4,0.75752]
[1750087810668,0.75752,2639.4,2639.3,2.02354]
[1750087810970,0.00568526,2639.5,2639.4,0.75752]
[1750087811172,0.05653,2640.0,2639.9,0.75738]
[1750087811373,0.75717,2640.7,2640.6,0.75716]
[1750087811670,0.75715,2640.7,2640.6,0.75716]
[1750087812062,8.34456434,2640.9,2640.1,3.2078]
[1750087812063,1.89281,2640.8,2640.1,3.2078]
[1750087812274,1.89281,2640.8,2639.3,3.78772]
[1750087812275,8.34456434,2640.3,2640.2,0.00568526]
[1750087812479,9.10182434,2640.3,2640.2,0.00568526]
[1750087813164,9.10182434,2640.3,2639.6,0.75745]
[1750087813165,14.37346695,2640.3,2639.6,0.75745]
[1750087813470,9.10201434,2639.7,2639.6,0.75747]
[1750087813669,0.75745,2639.7,2639.6,0.75747]
[1750087814579,0.75738,2640.0,2639.9,0.75737]
[1750087816178,3.884,2640.2,2639.5,4.5412]
[1750087816380,0.75742,2639.8,2639.7,0.75742]
[1750087816678,0.6762,2640.2,2639.6,1.89367]
[1750087816873,0.75738,2640.0,2639.9,0.75737]
[1750087817184,8.34456434,2640.0,2639.5,3.2078]
[1750087817376,0.75747,2639.6,2639.5,3.96528]
[1750087817782,0.75747,2639.6,2639.5,3.2078]
[1750087818884,0.75749,2639.5,2639.4,0.00568526]
[1750087820179,2.05859,2639.5,2639.4,0.00568526]
[1750087820579,0.75749,2639.5,2639.4,0.00568526]
[1750087820781,0.75749,2639.5,2639.4,0.76320526]
[1750087821786,0.75749,2639.5,2639.4,0.00568526]
[1750087823875,0.75749,2639.5,2639.4,0.76320526]
[1750087824982,11.55236434,2639.9,2639.4,0.00568526]
[1750087825178,0.7574,2639.9,2639.8,0.75739]
[1750087826583,0.75741,2639.8,2639.7,3.96522]
[1750087826882,0.75741,2639.9,2639.8,0.75738]
[1750087827687,0.75741,2639.8,2639.7,3.96522]
[1750087827882,0.75741,2639.8,2639.7,3.2078]
[1750087828080,8.34456434,2639.8,2639.5,1.41278]
[1750087828391,0.75747,2639.6,2639.5,1.41278]
[1750087828681,0.75749,2639.5,2639.4,0.00568526]
[1750087828885,13.64615434,2639.5,2639.4,0.00568526]
[1750087829487,0.75749,2639.5,2639.4,0.00568526]
[1750087829988,9.10205434,2639.5,2639.4,0.00568526]
[1750087830384,9.10205434,2639.5,2639.4,0.76320526]
[1750087830584,0.75749,2639.6,2639.5,0.75747]
[1750087830884,0.75749,2639.5,2639.4,0.00568526]
[1750087832689,1.02931304,2639.5,2639.4,0.76320526]
[1750087832880,0.75749,2639.5,2639.4,0.76320526]
[1750087833189,1.78680304,2639.5,2639.4,0.00568526]
[1750087833390,1.78680304,2639.5,2639.4,0.76320526]
[1750087833688,1.78680304,2639.5,2639.4,0.00568526]
[1750087833889,3.2078,2640.1,2639.4,16.5580496]
[1750087834081,3.2078,2640.4,2639.7,5.10136]
[1750087834279,0.75731,2640.2,2640.1,0.75731]
[1750087834491,1.78872072,2640.2,2640.1,0.75731]
[1750087835492,1.03141072,2640.2,2640.1,0.75731]
[1750087835786,1.78870072,2640.2,2640.1,0.75731]
[1750087836392,1.03141072,2640.2,2640.1,0.75731]
[1750087836595,0.75727,2640.3,2640.2,0.75729]
[1750087836795,1.78788606,2640.3,2640.2,0.75729]
[1750087837391,0.75731,2640.2,2640.1,0.7573]
[1750087837592,1.78792606,2640.2,2640.1,0.7573]
[1750087837887,1.03061606,2640.2,2640.1,0.7573]
[1750087839993,8.34456434,2640.4,2640.3,0.75726]
[1750087840296,10.13075154,2640.4,2640.3,0.75726]
[1750087840591,1.7861872,2640.4,2640.3,0.75726]
[1750087840791,1.0289472,2640.4,2640.3,3.96506]
[1750087840995,0.76283526,2640.7,2640.6,0.75718]
[1750087841200,0.75724,2640.4,2640.3,3.96503]
[1750087841391,9.10180434,2640.4,2640.3,0.75723]
[1750087841690,9.10176434,2640.6,2640.5,0.75721]
[1750087841895,0.00568526,2640.7,2640.6,0.75718]
[1750087842686,0.00568526,2640.7,2640.6,2.01108]
[1750087843092,0.00568526,2640.7,2640.6,0.75718]
[1750087843295,0.76283526,2640.7,2640.6,0.75718]
[1750087843598,0.00568526,2640.7,2640.6,0.75718]
[1750087844195,0.00568526,2640.7,2640.6,2.01108]
[1750087846595,0.00568526,2640.7,2640.6,5.21888]
[1750087846995,0.75705,2641.1,2641.0,0.75702]
[1750087847195,0.75703,2641.2,2641.1,0.75701]
[1750087847397,1.78291111,2641.2,2641.1,0.75701]
[1750087847599,8.34456434,2641.3,2640.8,1.8928]
[1750087847600,0.75698,2641.3,2641.2,0.75701]
[1750087848194,0.75703,2641.2,2641.1,0.75702]
[1750087849103,0.75703,2641.1,2641.0,0.68018526]
[1750087849303,0.75703,2641.1,2641.0,0.00568526]
[1750087849601,0.75703,2641.1,2641.0,0.76274526]
[1750087849901,0.00568526,2641.5,2641.1,1.89258]
[1750087850097,0.75696,2641.4,2641.3,0.75695]
[1750087850501,0.757,2641.3,2641.2,0.75699]
[1750087851202,0.75697,2641.4,2641.3,0.75695]
[1750087851793,0.00568526,2641.5,2641.4,0.75695]
[1750087853294,10.23645434,2642.1,2641.2,7.04701]
[1750087853295,0.75677,2642.1,2642.0,0.75675]
[1750087853505,5.8106,2642.3,2641.7,3.2078]
[1750087853698,6.56732,2642.3,2642.2,0.75672]
[1750087854302,6.56732,2642.3,2641.8,3.16948]
[1750087854512,5.8106,2642.3,2642.0,0.75676]
[1750087854800,5.8106,2642.3,2641.8,2.6096]
[1750087855001,0.75683,2641.8,2641.7,3.2078]
[1750087855192,0.75683,2641.8,2641.7,3.96466]
[1750087855903,9.10138434,2641.9,2641.8,0.75683]
[1750087856102,8.34456434,2641.9,2641.8,0.75683]
[1750087856305,8.34456434,2641.9,2641.7,3.2078]
[1750087856306,0.75678,2642.0,2641.9,0.75678]
[1750087856802,3.2078,2642.3,2641.9,1.89202]
[1750087857104,0.00376385,2642.5,2642.4,0.75666]
[1750087858002,0.6297,2643.1,2642.6,1.89147]
[1750087858198,0.6326,2643.3,2642.7,1.89145]
[1750087858403,0.75647,2643.1,2643.0,0.75647]
[1750087858605,3.8375,2643.4,2642.7,3.12905]
[1750087858810,3.8375,2643.4,2643.0,0.75647]
[1750087859011,3.8375,2643.4,2642.9,3.21348526]
[1750087859204,0.75639,2643.4,2642.9,5.10474526]
[1750087859411,0.75639,2643.4,2643.3,0.7564]
[1750087859707,3.2078,2643.7,2643.3,0.75639]
[1750087859912,3.2078,2643.7,2643.0,1.9087]
[1750087859913,0.7563,2643.7,2643.5,0.75634]
[1750087860204,1.2681,2643.9,2643.2,5.09886]
[1750087860205,0.6297,2643.9,2643.2,5.09886]
[1750087860405,3.2078,2644.0,2643.2,5.09886]
[1750087860406,3.2078,2644.0,2643.7,0.75627]
[1750087860611,0.75626,2643.8,2643.6,0.75632]
[1750087860808,0.75624,2643.9,2643.7,0.75628]
[1750087861109,3.2078,2644.0,2643.6,1.2666]
[1750087861502,0.75622,2644.0,2643.6,1.2666]
[1750087861805,0.75624,2643.9,2643.7,0.75628]
[1750087862002,0.75622,2644.0,2643.8,0.75626]
[1750087862202,0.75623,2643.9,2643.8,3.2078]
[1750087862400,8.34456434,2644.2,2643.6,1.2666]
[1750087862601,0.75625,2643.9,2643.7,0.75628]
[1750087862802,0.75627,2643.8,2643.6,2.02292]
[1750087863402,0.75627,2643.8,2643.7,0.75629]
[1750087863907,0.75627,2643.8,2643.6,2.0229]
[1750087864109,10.23499434,2644.2,2643.6,2.0229]
[1750087864305,1.89045,2644.1,2643.6,2.02292]
[1750087864512,0.75625,2643.9,2643.7,0.75629]
[1750087864714,0.75622,2644.0,2643.9,0.75623]
[1750087864907,14.79551434,2644.7,2643.8,4.4443]
[1750087865212,0.75613,2644.3,2644.1,3.2078]
[1750087865403,14.79550434,2644.7,2644.1,3.2078]
[1750087865404,3.2078,2644.7,2644.1,3.2078]
[1750087865605,0.75603,2644.6,2644.5,0.75605]
[1750087865806,0.75606,2644.5,2644.4,3.96387]
[1750087866005,0.75606,2644.5,2644.4,3.2078]
[1750087866214,0.75605,2644.6,2644.4,3.2078]
[1750087866400,0.75606,2644.5,2644.4,3.96387]
[1750087866605,0.75606,2644.5,2644.4,3.2078]
[1750087866904,0.75606,2644.5,2644.4,3.96389]
[1750087867306,1.8899,2644.9,2644.4,3.96389]
[1750087867508,0.631,2645.0,2644.4,4.4478]
[1750087867703,0.631,2645.0,2644.4,5.109]
[1750087867906,0.75599,2644.8,2644.7,0.756]
[1750087868205,0.75597,2644.9,2644.4,6.99917]
[1750087868406,0.631,2645.0,2644.8,0.75597]
[1750087868609,0.631,2645.0,2644.7,3.2078]
[1750087868811,0.75598,2644.8,2644.7,3.2078]
[1750087869009,0.75606,2644.5,2644.4,3.869]
[1750087869206,0.75606,2644.5,2644.4,0.6612]
[1750087869412,0.75606,2644.5,2644.4,1.41729]
[1750087870016,0.75606,2644.5,2644.4,0.6612]
[1750087870507,1.88998,2644.8,2644.3,0.7617743]
[1750087870508,0.75609,2644.4,2644.3,0.7617943]
[1750087870713,3.2078,2644.9,2644.3,0.0056743]
[1750087870714,6.35511,2644.9,2644.3,0.0056743]
[1750087870907,0.75603,2644.7,2644.5,0.75605]
[1750087871107,0.75598,2644.8,2644.7,0.756]
[1750087871315,0.75598,2644.8,2644.4,3.2078]
[1750087871518,0.75598,2644.8,2644.7,0.75598]
[1750087871720,0.75598,2644.8,2644.5,1.3464]
[1750087871721,3.96376,2644.9,2644.8,0.75598]
[1750087871911,0.75598,2644.8,2644.7,0.75599]
[1750087872517,3.2078,2644.9,2644.6,0.75602]
[1750087872518,0.75602,2644.7,2644.6,0.75602]
[1750087872812,0.75602,2644.7,2644.6,0.75603]
[1750087873816,0.75609,2644.5,2644.4,0.75607]
[1750087874220,0.75609,2644.4,2644.3,0.7617743]
[1750087874414,0.75605,2644.6,2644.5,0.75604]
[1750087875318,0.75608,2644.5,2644.4,0.75607]
[1750087876314,0.75606,2644.6,2644.5,0.75604]
[1750087876711,0.75602,2644.8,2644.7,0.75599]
[1750087876911,0.75603,2644.7,2644.6,0.75601]
[1750087877520,0.75603,2644.7,2644.3,1.2715743]
[1750087877521,1.88995,2644.8,2644.3,1.2715743]
[1750087877814,0.75609,2644.4,2644.3,0.0056743]
[1750087878019,0.75608,2644.5,2644.4,0.75606]
[1750087878619,0.75606,2644.6,2644.5,0.75603]
[1750087878822,0.75603,2644.7,2644.6,0.75601]
[1750087879820,0.75605,2644.6,2644.5,0.75604]
[1750087881121,0.75606,2644.5,2644.4,3.2078]
[1750087881320,1.88998,2644.8,2644.4,3.2078]
[1750087881522,0.75606,2644.6,2644.5,0.75604]
[1750087881716,3.11172,2644.7,2644.3,0.0056743]
[1750087882018,3.11172,2644.7,2643.5,5.09867]
[1750087882019,14.4574545,2644.6,2643.5,5.09867]
[1750087882211,0.75634,2643.6,2643.5,0.75634]
[1750087882411,8.34456434,2643.7,2643.5,3.2078]
[1750087882612,0.75644,2643.2,2643.1,0.75644]
[1750087882910,1.89083,2643.6,2642.8,2.50456]
[1750087882911,8.34456434,2643.4,2642.8,0.6132]
[1750087883110,0.76203774,2643.4,2642.9,3.2078]
[1750087883312,0.75643,2643.2,2643.0,0.75647]
[1750087883508,0.75642,2643.3,2642.9,4.5373]
[1750087883719,0.75642,2643.3,2643.2,0.75641]
[1750087884227,0.00563774,2643.4,2643.3,0.7564]
[1750087884518,0.00563774,2643.4,2643.3,2.0738]
[1750087884821,0.7564,2643.3,2643.2,3.96421]
[1750087885021,0.00563774,2643.4,2643.3,0.7564]
[1750087885520,0.00563774,2643.4,2643.2,3.2078]
[1750087885720,11.55800208,2643.4,2642.8,3.8266743]
[1750087885923,8.34456434,2643.1,2642.8,4.5832143]
[1750087886119,1.77452205,2643.0,2642.9,0.75651]
[1750087886324,1.77452205,2643.0,2642.8,3.8266743]
[1750087886325,0.75652,2642.9,2642.8,3.8266743]
[1750087886622,1.77453205,2642.9,2642.8,3.8266743]
[1750087887119,1.77453205,2642.9,2642.8,0.0056743]
[1750087887314,0.75669,2642.4,2642.2,0.7567]
[1750087887513,1.89145,2642.7,2642.1,3.2078]
[1750087887514,0.75665,2642.5,2642.1,3.2078]
[1750087887723,0.75667,2642.4,2642.1,4.563]
[1750087888024,0.75667,2642.4,2642.3,0.75669]
[1750087888317,0.75665,2642.5,2642.4,0.75666]
[1750087888513,1.7760058,2642.5,2642.4,0.75666]
[1750087888719,1.7759958,2642.5,2642.3,0.75667]
[1750087888918,0.75663,2642.6,2642.4,0.75666]
[1750087889118,1.01900027,2642.5,2642.4,0.75666]
[1750087889620,1.01900027,2642.5,2642.1,6.4605243]
[1750087889621,1.01900027,2642.5,2642.1,4.5686743]
[1750087889825,0.7567,2642.3,2642.2,0.75671]
[1750087890020,0.75668,2642.4,2642.2,0.75671]
[1750087890220,0.75668,2642.4,2642.3,0.75669]
[1750087890420,1.77508796,2642.4,2642.3,0.75669]
[1750087890635,0.75672,2642.2,2642.1,3.9702143]
[1750087890924,0.75672,2642.2,2642.1,0.7624043]
[1750087891124,0.7567,2642.3,2642.2,0.75671]
[1750087891428,0.75672,2642.2,2642.1,0.7624043]
[1750087891624,3.2078,2642.5,2642.1,0.0056743]
[1750087891921,3.2078,2642.8,2642.7,0.75658]
[1750087892118,0.75653,2642.9,2642.8,0.75653]
[1750087892324,1.7749959,2642.9,2642.8,0.75653]
[1750087892721,1.7749959,2642.9,2642.7,0.75656]
[1750087892722,0.75656,2642.8,2642.7,0.75656]
[1750087892922,0.6629,2643.0,2642.5,1.3554]
[1750087893119,0.75658,2642.7,2642.6,0.7566]
[1750087893517,0.75659,2642.7,2642.5,1.3554]
[1750087893727,0.75661,2642.6,2642.5,0.75661]
[1750087893926,0.7566,2642.7,2642.6,0.75659]
[1750087894122,0.75656,2642.8,2642.7,0.75656]
[1750087894329,0.75659,2642.7,2642.6,0.75659]
[1750087896323,9.68036434,2642.9,2642.5,0.75662]
[1750087896324,0.75662,2642.6,2642.5,0.75662]
[1750087896625,0.75663,2642.5,2642.4,3.0143]
[1750087896837,14.77950434,2642.9,2642.5,0.75662]
[1750087896838,0.7566,2642.6,2642.5,0.75662]
[1750087897020,14.77950434,2642.9,2642.4,3.0143]
[1750087897021,0.7566,2642.7,2642.6,0.75659]
[1750087897629,3.2078,2642.9,2642.4,3.0143]
[1750087897829,0.75655,2642.9,2642.8,0.75653]
[1750087898430,0.75657,2642.8,2642.7,0.75656]
[1750087898734,0.75663,2642.5,2642.4,6.2221]
[1750087899034,0.75662,2642.6,2642.5,0.75661]
[1750087899733,0.75659,2642.7,2642.6,0.75658]
[1750087900334,0.75663,2642.6,2642.5,0.75662]
[1750087901737,1.2277,2642.9,2642.4,4.90595]
[1750087901937,0.75655,2642.9,2642.8,0.75655]
[1750087902340,0.75658,2642.8,2642.7,0.75656]
[1750087902533,10.89870434,2643.0,2642.5,1.3137]
[1750087902737,0.75661,2642.7,2642.6,0.75659]
[1750087903333,0.75661,2642.7,2642.6,0.75661]
[1750087903834,0.75661,2642.6,2642.4,3.0143]
[1750087904032,0.75661,2642.6,2642.5,0.75664]
[1750087904537,0.75664,2642.5,2642.4,3.0143]
[1750087904737,2.00424,2642.5,2642.4,3.0143]
[1750087904943,1.2476,2642.5,2642.1,0.0056743]
[1750087905136,0.75665,2642.5,2642.4,0.75662]
[1750087905651,0.75672,2642.2,2642.1,0.0056743]
[1750087905945,9.10128434,2642.2,2642.1,0.0056743]
[1750087906334,9.51914662,2642.2,2642.1,0.0056743]
[1750087908439,1.17458228,2642.2,2642.1,0.7624243]
[1750087908736,0.41786228,2642.2,2642.1,0.7624243]
[1750087909138,0.75656,2642.8,2642.4,1.89166]
[1750087909342,5.09895,2643.2,2642.8,0.75654]
[1750087909542,0.75654,2642.9,2642.8,0.75654]
[1750087909835,1.77775818,2642.9,2642.8,0.75654]
[1750087910337,1.77775818,2642.9,2642.6,3.2078]
[1750087910543,0.75656,2642.8,2642.7,0.75656]
[1750087911239,1.77999342,2642.8,2642.7,0.75656]
[1750087911642,1.02343342,2642.8,2642.7,0.75656]
[1750087912143,1.77998342,2642.8,2642.7,0.75656]
[1750087913036,0.75658,2642.7,2642.6,1.37741]
[1750087913244,1.0757101,2642.7,2642.6,1.37741]
[1750087913435,1.0757101,2642.7,2642.6,2.67521]
[1750087914036,1.04141857,2642.7,2642.6,2.67521]
[1750087914641,0.01798515,2642.7,2642.6,2.67521]
[1750087914938,1.40682,2643.3,2642.8,1.89134]
[1750087915141,1.40682,2643.3,2643.1,0.75646]
[1750087915142,1.02605943,2643.2,2643.1,0.75646]
[1750087915339,1.02605943,2643.2,2643.1,2.04576]
[1750087915940,0.76201774,2643.4,2643.3,0.75641]
[1750087916142,1.78843704,2643.4,2643.3,0.75641]
[1750087916541,1.03205704,2643.4,2643.3,0.75641]
[1750087916745,0.75644,2643.2,2643.1,2.04574]
[1750087916946,0.75644,2643.2,2643.1,0.75644]
[1750087917145,0.75652,2643.0,2642.9,0.75651]
[1750087917335,1.01741867,2643.1,2642.8,1.2893]
[1750087917539,0.75641,2643.3,2643.2,0.75644]
[1750087917840,0.00563774,2643.4,2643.3,0.75641]
[1750087918041,1.02297834,2643.4,2643.3,0.75641]
[1750087919145,0.00563774,2643.4,2643.3,2.08671]
[1750087920238,3.2078,2644.0,2643.3,8.22129]
[1750087920438,1.01612196,2643.9,2643.8,0.75623]
[1750087920844,1.01612196,2643.9,2643.6,0.75632]
[1750087921042,0.75646,2643.2,2642.8,3.2078]
[1750087921243,1.89088,2643.5,2643.2,0.75644]
[1750087921244,0.0056743,2643.3,2643.2,0.75644]
[1750087921946,0.0056743,2643.3,2643.2,1.99454]
[1750087922547,0.75625,2643.9,2643.8,0.75626]
[1750087922842,0.75625,2643.9,2643.4,1.8909]
[1750087922843,1.01632698,2643.9,2643.4,1.8909]
[1750087923047,0.75632,2643.6,2643.5,2.63613]
[1750087923239,0.75637,2643.5,2643.4,0.75637]
[1750087923435,0.75639,2643.4,2643.3,0.75638]
[1750087923636,0.75636,2643.5,2643.4,0.75635]
[1750087924248,0.80863668,2643.5,2643.4,0.75635]
[1750087924546,0.05227668,2643.5,2643.4,0.75635]
[1750087924745,0.7562,2644.1,2644.0,0.7562]
[1750087924949,1.01658591,2644.1,2644.0,0.75621]
[1750087925143,1.77276591,2644.1,2644.0,0.75621]
[1750087926144,0.75622,2644.0,2643.9,0.75621]
[1750087926349,0.7562,2644.1,2644.0,0.75621]
[1750087926744,1.77161656,2644.1,2644.0,0.75621]
[1750087927351,0.75622,2644.0,2643.9,0.75621]
[1750087927847,0.75626,2643.9,2643.8,0.75625]
[1750087928050,0.75622,2644.0,2643.9,0.7562]
[1750087928252,0.75606,2644.6,2644.5,0.75603]
[1750087928553,0.75604,2644.6,2644.5,0.75604]
[1750087929150,0.75609,2644.4,2644.3,0.0056743]
[1750087929650,9.10065434,2644.4,2644.3,0.0056743]
[1750087929850,0.75629,2643.8,2643.7,0.75628]
[1750087930350,3.2078,2644.2,2643.6,3.8254]
[1750087930549,3.2078,2644.2,2643.6,5.71619]
[1750087930751,3.2134743,2644.2,2643.6,5.7218643]
[1750087930950,5.3149443,2644.2,2644.1,0.75618]
[1750087931146,5.3149443,2644.2,2643.7,1.89074]
[1750087931147,0.0056743,2644.2,2643.9,3.2078]
[1750087931340,0.75621,2644.0,2643.9,3.2078]
[1750087931545,0.75629,2643.7,2643.6,0.6232743]
[1750087931747,0.75629,2643.7,2643.6,0.0056743]
[1750087933641,2.06069,2643.7,2643.6,0.0056743]
[1750087934351,2.06069,2643.7,2643.5,0.9457]
[1750087934352,3.2078,2643.7,2643.5,0.9457]
[1750087934547,0.75635,2643.6,2643.5,0.9457]
[1750087935050,2.06075,2643.6,2643.5,0.9457]
[1750087935847,3.07404184,2643.6,2643.5,0.9457]
[1750087936554,1.89111,2643.2,2642.9,0.75652]
[1750087936749,0.75653,2642.9,2642.8,0.75652]
[1750087936950,2.62,2643.1,2642.5,5.09938]
[1750087936951,0.75656,2642.8,2642.7,0.75656]
[1750087937855,1.89095,2643.4,2642.7,1.89145]
[1750087938051,1.01487312,2643.3,2642.8,3.2078]
[1750087938250,0.75647,2643.1,2643.0,0.75647]
[1750087938654,1.01492868,2643.1,2642.8,3.2078]
[1750087938860,0.75649,2643.1,2643.0,0.75648]
[1750087939051,1.77141421,2643.1,2643.0,0.75648]
[1750087939559,0.7565,2643.0,2642.9,0.7565]
[1750087939759,8.34456434,2643.2,2642.8,4.91023]
[1750087939760,0.75652,2642.9,2642.8,4.91023]
[1750087939952,0.75651,2643.0,2642.9,0.7565]
[1750087940860,0.75653,2642.9,2642.8,4.91024]
[1750087941158,0.75649,2643.1,2643.0,0.75649]
[1750087941360,1.77176193,2643.1,2643.0,0.75649]
[1750087941548,1.01527193,2643.1,2643.0,0.75649]
[1750087941754,1.01527193,2643.1,2642.9,0.75651]
[1750087942058,0.75652,2643.0,2642.9,0.75651]
[1750087942263,0.75649,2643.1,2643.0,0.75649]
[1750087942459,0.75651,2643.0,2642.9,0.75651]
[1750087942660,0.75651,2643.0,2642.8,0.9459]
[1750087942661,0.75653,2642.9,2642.8,0.9459]
[1750087942857,3.27813,2642.9,2642.8,0.9459]
[1750087943062,0.75679,2642.0,2641.9,2.6496]
[1750087943354,9.10135434,2642.0,2641.9,2.6496]
[1750087943559,0.75679,2642.0,2641.9,3.40642]
[1750087943753,0.75679,2642.0,2641.9,2.6496]
[1750087944263,0.75678,2642.1,2642.0,0.75678]
[1750087944653,0.75679,2642.0,2641.9,3.40639]
[1750087946259,0.0056743,2642.2,2641.9,2.6496]
[1750087946459,0.80906668,2642.0,2641.9,3.40642]
[1750087946958,0.05227668,2642.0,2641.9,3.40642]
[1750087948862,0.05227668,2642.0,2641.9,6.61422]
[1750087949662,0.0056743,2642.2,2642.1,0.75676]
[1750087950769,0.7624043,2642.2,2642.1,0.75676]
[1750087951460,0.7624043,2642.2,2642.0,2.00607]
[1750087951665,0.75676,2642.1,2642.0,0.75679]
[1750087951964,0.7624243,2642.2,2642.1,0.75676]
[1750087955364,8.35023864,2642.2,2641.9,3.2078]
[1750087955561,9.10698864,2642.2,2642.1,3.24196]
[1750087956260,9.10698864,2642.2,2642.1,2.4852]
[1750087957366,9.15927871,2642.2,2642.1,2.4852]
[1750087958376,0.75685,2641.8,2641.7,0.0198743]
[1750087958670,9.10141434,2641.8,2641.7,0.0056743]
[1750087959357,9.15370441,2641.8,2641.7,0.0056743]
[1750087959560,9.15370441,2641.8,2641.2,0.6444]
[1750087959561,0.75696,2641.4,2641.3,0.75698]
[1750087959761,1.89223,2641.7,2641.5,0.75692]
[1750087959762,0.75692,2641.6,2641.5,0.75692]
[1750087960169,0.75694,2641.5,2641.4,0.75694]
[1750087960369,0.75699,2641.3,2641.2,2.6995]
[1750087960574,0.75699,2641.3,2641.2,2.69949]
[1750087960871,0.75697,2641.4,2641.3,0.75699]
[1750087961067,9.15380441,2641.5,2641.4,0.75696]
[1750087961271,0.75696,2641.4,2641.3,0.75696]
[1750087961469,9.10151434,2641.5,2641.4,0.75696]
[1750087961667,0.75699,2641.4,2641.3,0.75698]
[1750087961973,0.75698,2641.4,2641.3,0.75698]
[1750087962770,0.75698,2641.4,2641.2,0.6444]
[1750087962972,0.75698,2641.4,2641.3,0.75697]
[1750087963563,0.75699,2641.3,2641.2,1.4014]
[1750087964076,0.75698,2641.4,2641.3,0.75697]